fUST/lending_fUST_20240826
["ID","MTS","AMOUNT","RATE_DAILY","PERIOD"]
[336037691,1724676642951,-500.0,0.0001234,2]
[336037693,1724676642961,-500.0,0.0001234,2]
[336037695,1724676642971,-500.0,0.0001234,2]
[336037697,1724676642981,-500.0,0.0001234,2]
[336037699,1724676642991,-500.0,0.0001234,2]
[336037701,1724676643001,-633.26,0.0001234,2]
[336037703,1724676643011,-502.93761345,0.0001234,2]
[336037705,1724676643021,-549.48,0.0001234,2]
[336037707,1724676643030,-500.0,0.0001234,2]
[336037709,1724676643041,-832.72,0.0001234,2]
[336037711,1724676643051,-500.0,0.0001234,2]
[336037713,1724676643060,-542.05434122,0.0001234,2]
[336037715,1724676643070,-500.0,0.0001234,2]
[336037718,1724676643080,-266.65447245,0.0001234,2]
[336037721,1724676643091,-500.0,0.0001234,2]
[336037723,1724676643101,-868.4,0.0001234,2]
[336037725,1724676643110,-500.0,0.0001234,2]
[336037727,1724676643120,-500.0,0.0001234,2]
[336037729,1724676643129,-502.90164632,0.0001234,2]
[336037731,1724676643138,-500.0,0.0001234,2]
[336037732,1724676643147,-500.0,0.0001234,2]
[336037734,1724676643157,-500.0,0.0001234,2]
[336037736,1724676643167,-556.59084258,0.0001234,2]
[336037738,1724676643176,-506.34,0.0001234,2]
[336037740,1724676643186,-500.0,0.0001234,2]
[336037742,1724676643196,-500.0,0.0001234,2]
[336037744,1724676643205,-500.0,0.0001234,2]
[336037747,1724676643215,-500.0,0.0001234,2]
[336037749,1724676643225,-963.04,0.0001234,2]
[336037751,1724676643235,-541.16942906,0.0001234,2]
[336037753,1724676643244,-500.0,0.0001234,2]
[336037755,1724676643255,-1038.88,0.0001234,2]
[336037757,1724676643267,-500.0,0.0001234,2]
[336037760,1724676643277,-521.79832935,0.0001234,2]
[336037763,1724676643287,-500.0,0.0001234,2]
[336037767,1724676643298,-500.0,0.0001234,2]
[336037770,1724676643308,-500.0,0.0001234,2]
[336037773,1724676643318,-500.0,0.0001234,2]
[336037777,1724676643328,-753.89,0.0001234,2]
[336037780,1724676643338,-517.03,0.0001234,2]
[336037783,1724676643348,-769.1,0.0001234,2]
[336037786,1724676643357,-500.0,0.0001234,2]
[336037789,1724676643368,-500.0,0.0001234,2]
[336037792,1724676643378,-500.0,0.0001234,2]
[336037794,1724676643387,-500.0,0.0001234,2]
[336037796,1724676643397,-876.02,0.0001234,2]
[336037798,1724676643409,-500.0,0.0001234,2]
[336037800,1724676643419,-500.0,0.0001234,2]
[336037803,1724676643431,-500.0,0.0001234,2]
[336037805,1724676643441,-500.0,0.0001234,2]
[336037807,1724676643451,-500.0,0.0001234,2]
[336037809,1724676643460,-732.07,0.0001234,2]
[336037811,1724676643470,-500.0,0.0001234,2]
[336037813,1724676643480,-500.0,0.0001234,2]
[336037815,1724676643491,-500.0,0.0001234,2]
[336037817,1724676643502,-500.0,0.0001234,2]
[336037820,1724676643515,-500.0,0.0001234,2]
[336037822,1724676643525,-822.66,0.0001234,2]
[336037824,1724676643536,-500.0,0.0001234,2]
[336037826,1724676643547,-507.19310601,0.0001234,2]
[336037828,1724676643557,-610.09,0.0001234,2]
[336037830,1724676643567,-500.0,0.0001234,2]
[336037832,1724676643576,-518.00710361,0.0001234,2]
[336037834,1724676643586,-551.548176,0.0001234,2]
[336037836,1724676643596,-205.91878196,0.0001234,2]
[336037838,1724676643606,-500.0,0.0001234,2]
[336037840,1724676643616,-500.0,0.0001234,2]
[336037842,1724676643625,-500.6739883,0.0001234,2]
[336037844,1724676643635,-568.39,0.0001234,2]
[336037846,1724676643645,-513.71,0.0001234,2]
[336037848,1724676643654,-580.97,0.0001234,2]
[336037850,1724676643663,-500.0,0.0001234,2]
[336037852,1724676643673,-996.7,0.0001234,2]
[336037854,1724676643682,-500.0,0.0001234,2]
[336037856,1724676643692,-500.0,0.0001234,2]
[336037858,1724676643701,-698.26,0.0001234,2]
[336037860,1724676643711,-500.0,0.0001234,2]
[336037862,1724676643722,-500.0,0.0001234,2]
[336037864,1724676643732,-500.0,0.0001234,2]
[336037866,1724676643743,-500.0,0.0001234,2]
[336037893,1724676643754,-542.46,0.0001234,2]
[336037895,1724676644004,-531.20908801,0.0001234,2]
[336037898,1724676644013,-500.0,0.0001234,2]
[336037899,1724676644022,-600.48,0.0001234,2]
[336037900,1724676644032,-1132.56,0.0001234,2]
[336037901,1724676644041,-674.63,0.0001234,2]
[336037902,1724676644051,-500.0,0.0001234,2]
[336037903,1724676644061,-500.0,0.0001234,2]
[336037904,1724676644070,-519.45321061,0.0001234,2]
[336037905,1724676644079,-500.0,0.0001234,2]
[336037906,1724676644088,-501.58266784,0.0001234,2]
[336037907,1724676644097,-500.0,0.0001234,2]
[336037908,1724676644106,-500.0,0.0001234,2]
[336037909,1724676644118,-500.0,0.0001234,2]
[336037910,1724676644128,-516.88674536,0.0001234,2]
[336037911,1724676644138,-500.0,0.0001234,2]
[336037912,1724676644147,-505.70093749,0.0001234,2]
[336037913,1724676644156,-500.0,0.0001234,2]
[336037914,1724676644166,-500.0,0.0001234,2]
[336037915,1724676644175,-500.0,0.0001234,2]
[336037916,1724676644184,-642.72,0.0001234,2]
[336037917,1724676644194,-500.0,0.0001234,2]
[336037918,1724676644205,-500.0,0.0001234,2]
[336037919,1724676644214,-506.19896269,0.0001234,2]
[336037920,1724676644223,-500.0,0.0001234,2]
[336037921,1724676644239,-500.0,0.0001234,2]
[336037922,1724676644248,-500.0,0.0001234,2]
[336037923,1724676644257,-1120.46,0.0001234,2]
[336037924,1724676644267,-500.0,0.0001234,2]
[336037925,1724676644276,-500.34294952,0.0001234,2]
[336037926,1724676644286,-500.0,0.0001234,2]
[336037927,1724676644295,-789.07,0.0001234,2]
[336037928,1724676644303,-500.0,0.0001234,2]
[336037929,1724676644312,-500.0,0.0001234,2]
[336037930,1724676644321,-500.0,0.0001234,2]
[336037931,1724676644330,-500.0,0.0001234,2]
[336037932,1724676644340,-500.0,0.0001234,2]
[336037933,1724676644349,-500.0,0.0001234,2]
[336037935,1724676644358,-500.0,0.0001234,2]
[336037937,1724676644368,-500.0,0.0001234,2]
[336037939,1724676644377,-500.0,0.0001234,2]
[336037941,1724676644387,-508.0764141,0.0001234,2]
[336037942,1724676644397,-1131.93,0.0001234,2]
[336037943,1724676644406,-508.04033271,0.0001234,2]
[336037944,1724676644416,-500.0,0.0001234,2]
[336037945,1724676644427,-500.0,0.0001234,2]
[336037946,1724676644438,-500.0,0.0001234,2]
[336037947,1724676644448,-500.0,0.0001234,2]
[336037948,1724676644457,-508.68888417,0.0001234,2]
[336037949,1724676644466,-500.0,0.0001234,2]
[336037950,1724676644476,-500.0,0.0001234,2]
[336037951,1724676644485,-500.0,0.0001234,2]
[336037952,1724676644495,-1256.67,0.0001234,2]
[336037953,1724676644504,-512.19108395,0.0001234,2]
[336037954,1724676644513,-516.68760384,0.0001234,2]
[336037955,1724676644522,-500.0,0.0001234,2]
[336037957,1724676644531,-500.0,0.0001234,2]
[336037959,1724676644540,-500.0,0.0001234,2]
[336037961,1724676644550,-500.0,0.0001234,2]
[336037963,1724676644560,-500.0,0.0001234,2]
[336037965,1724676644569,-500.0,0.0001234,2]
[336037967,1724676644579,-500.0,0.0001234,2]
[336037969,1724676644588,-604.74,0.0001234,2]
[336037971,1724676644599,-667.69,0.0001234,2]
[336037973,1724676644609,-500.0,0.0001234,2]
[336037975,1724676644619,-500.0,0.0001234,2]
[336037977,1724676644630,-1100.44,0.0001234,2]
[336037979,1724676644639,-500.0,0.0001234,2]
[336037981,1724676644649,-500.0,0.0001234,2]
[336037984,1724676644660,-500.0,0.0001234,2]
[336037986,1724676644670,-509.30452078,0.0001234,2]
[336037988,1724676644679,-500.0,0.0001234,2]
[336037990,1724676644689,-500.0,0.0001234,2]
[336037992,1724676644698,-500.0,0.0001234,2]
[336037994,1724676644707,-500.0,0.0001234,2]
[336037996,1724676644716,-500.0,0.0001234,2]
[336037998,1724676644726,-747.71,0.0001234,2]
[336038000,1724676644735,-500.0,0.0001234,2]
[336038002,1724676644744,-500.0,0.0001234,2]
[336038004,1724676644753,-500.0,0.0001234,2]
[336038006,1724676644763,-430.62158138,0.0001234,2]
[336038008,1724676644772,-500.0,0.0001234,2]
[336038010,1724676644781,-500.0,0.0001234,2]
[336038012,1724676644790,-500.0,0.0001234,2]
[336038014,1724676644799,-500.0,0.0001234,2]
[336038016,1724676644808,-500.0,0.0001234,2]
[336038018,1724676644818,-500.0,0.0001234,2]
[336038020,1724676644827,-500.0,0.0001234,2]
[336038022,1724676644836,-506.39592459,0.0001234,2]
[336038024,1724676644846,-1135.77,0.0001234,2]
[336038026,1724676644855,-500.0,0.0001234,2]
[336038028,1724676644865,-500.0,0.0001234,2]
[336038030,1724676644878,-500.0,0.0001234,2]
[336038032,1724676644888,-500.0,0.0001234,2]
[336038034,1724676644897,-500.0,0.0001234,2]
[336038036,1724676644908,-500.0,0.0001234,2]
[336038038,1724676644918,-623.42,0.0001234,2]
[336038040,1724676644927,-500.0,0.0001234,2]
[336038042,1724676644937,-500.0,0.0001234,2]
[336038044,1724676644948,-207.92078638,0.0001234,2]
[336038046,1724676644959,-504.10350957,0.0001234,2]
[336038048,1724676644969,-500.0,0.0001234,2]
[336038050,1724676644979,-500.0,0.0001234,2]
[336038052,1724676644990,-500.0,0.0001234,2]
[336038054,1724676644999,-500.0,0.0001234,2]
[336038056,1724676645008,-500.0,0.0001234,2]
[336038058,1724676645018,-500.0,0.0001234,2]
[336038060,1724676645027,-939.9,0.0001234,2]
[336038062,1724676645037,-798.73,0.0001234,2]
[336038064,1724676645047,-798.73,0.0001234,2]
[336038066,1724676645056,-646.42,0.0001234,2]
[336038068,1724676645066,-429.76561624,0.0001234,2]
[336038070,1724676645075,-500.0,0.0001234,2]
[336038072,1724676645084,-554.23,0.0001234,2]
[336038074,1724676645093,-500.0,0.0001234,2]
[336038076,1724676645102,-500.0,0.0001234,2]
[336038078,1724676645112,-578.98,0.0001234,2]
[336038080,1724676645121,-500.0,0.0001234,2]
[336038082,1724676645130,-500.0,0.0001234,2]
[336038084,1724676645139,-500.0,0.0001234,2]
[336038086,1724676645148,-500.0,0.0001234,2]
[336038088,1724676645157,-500.0,0.0001234,2]
[336038090,1724676645166,-405.18429457,0.0001234,2]
[336038094,1724676645186,-94.81570543,0.0001234,2]
[336038095,1724676645195,-500.0,0.0001234,2]
[336038097,1724676645204,-500.0,0.0001234,2]
[336038099,1724676645213,-2326.31,0.0001234,2]
[336038101,1724676645223,-500.0,0.0001234,2]
[336038103,1724676645232,-500.0,0.0001234,2]
[336038105,1724676645241,-500.0,0.0001234,2]
[336038107,1724676645250,-545.4,0.0001234,2]
[336038109,1724676645259,-513.94313761,0.0001234,2]
[336038111,1724676645268,-500.0,0.0001234,2]
[336038113,1724676645277,-957.93,0.0001234,2]
[336038115,1724676645286,-500.0,0.0001234,2]
[336038117,1724676645296,-500.0,0.0001234,2]
[336038119,1724676645305,-500.0,0.0001234,2]
[336038121,1724676645315,-500.0,0.0001234,2]
[336038123,1724676645324,-500.0,0.0001234,2]
[336038125,1724676645334,-599.50187105,0.0001234,2]
[336038128,1724676645346,-471.15812895,0.0001234,2]
[336038130,1724676645355,-719.55,0.0001234,2]
[336038132,1724676645364,-509.99274844,0.0001234,2]
[336038134,1724676645374,-500.0,0.0001234,2]
[336038136,1724676645384,-500.0,0.0001234,2]
[336038138,1724676645394,-63.89912254,0.0001234,2]
[336038227,1724676645956,-501.097122,0.00012328,2]
[336038229,1724676645965,-500.0,0.00012328,2]
[336038231,1724676645974,-436.10087746,0.0001234,2]
[336038234,1724676645984,-743.83,0.0001234,2]
[336038236,1724676645994,-970.31,0.0001234,2]
[336038238,1724676646003,-668.35,0.0001234,2]
[336038240,1724676646012,-500.0,0.0001234,2]
[336038242,1724676646022,-500.0,0.0001234,2]
[336038244,1724676646031,-908.89,0.0001234,2]
[336038246,1724676646042,-793.76,0.0001234,2]
[336038248,1724676646054,-631.58,0.0001234,2]
[336038250,1724676646064,-500.0,0.0001234,2]
[336038252,1724676646075,-500.0,0.0001234,2]
[336038254,1724676646085,-500.0,0.0001234,2]
[336038257,1724676646097,-500.0,0.0001234,2]
[336038259,1724676646109,-500.0,0.0001234,2]
[336038261,1724676646118,-500.0,0.0001234,2]
[336038263,1724676646132,-500.0,0.0001234,2]
[336038265,1724676646141,-991.04,0.0001234,2]
[336038267,1724676646150,-500.0,0.0001234,2]
[336038269,1724676646159,-740.96,0.0001234,2]
[336038271,1724676646170,-500.0,0.0001234,2]
[336038273,1724676646179,-221.56838273,0.0001234,2]
[336038275,1724676646189,-1220.28,0.0001234,2]
[336038277,1724676646200,-614.86926218,0.0001234,2]
[336038279,1724676646210,-625.26,0.0001234,2]
[336038281,1724676646221,-664.71,0.0001234,2]
[336038283,1724676646232,-500.0,0.0001234,2]
[336038285,1724676646243,-500.0,0.0001234,2]
[336038288,1724676646255,-716.47,0.0001234,2]
[336038290,1724676646266,-500.0,0.0001234,2]
[336038292,1724676646276,-500.0,0.0001234,2]
[336038294,1724676646285,-824.17,0.0001234,2]
[336038296,1724676646295,-500.0,0.0001234,2]
[336038298,1724676646305,-553.98022768,0.0001234,2]
[336038300,1724676646317,-500.0,0.0001234,2]
[336038302,1724676646327,-505.39252896,0.0001234,2]
[336038305,1724676646338,-500.0,0.0001234,2]
[336038307,1724676646349,-500.0,0.0001234,2]
[336038309,1724676646359,-39585.453704,0.00012341,2]
[336038311,1724676646369,-500.0,0.00012341,2]
[336038313,1724676646379,-500.0,0.00012341,2]
[336038315,1724676646389,-549.48,0.00012341,2]
[336038317,1724676646398,-500.0,0.00012341,2]
[336038320,1724676646409,-798.73,0.00012341,2]
[336038322,1724676646421,-500.0,0.00012341,2]
[336038324,1724676646431,-500.0,0.00012341,2]
[336038326,1724676646441,-1947.31449406,0.00012341,2]
[336038329,1724676646459,-378.99550594,0.00012341,2]
[336038331,1724676646468,-740.96,0.00012341,2]
[336038333,1724676646478,-500.0,0.00012342,2]
[336038335,1724676646488,-500.0,0.00012342,2]
[336038337,1724676646497,-500.0,0.00012342,2]
[336038339,1724676646507,-608.84,0.00012342,2]
[336038341,1724676646518,-500.0,0.00012342,2]
[336038343,1724676646528,-263.11822829,0.00012342,2]
[336039769,1724676695314,157.72598543,0.00011332,2]
[336039770,1724676695336,26.68647828,0.00011332,2]
[336039771,1724676695359,898.51494819,0.00011332,2]
[336039774,1724676924021,-300.0,0.00011998,2]
[336039776,1724676936542,-583.0,0.00011999,2]
[336039829,1724677441972,1000.0,0.00012,12]
[336039831,1724677486534,10205.90810112,9.939e-05,2]
[336039836,1724677638558,22009.3809006,8.861e-05,2]
[336039839,1724677650137,-300.0,9.523e-05,2]
[336039840,1724677650158,-680.31074553,9.939e-05,2]
[336039841,1724677650178,-405.39697964,9.939e-05,2]
[336039842,1724677650200,-420.0,0.00010475,2]
[336039843,1724677650226,-587.0,0.00011523,2]
[336039844,1724677650246,-223.40672649,0.00011731,2]
[336039845,1724677650267,-180.92268934,0.00011731,2]
[336039846,1724677650287,-308.87373714,0.00011842,2]
[336039847,1724677650309,-154.72922386,0.00011894,2]
[336039848,1724677650330,-817.4486522,0.00011978,2]
[336039849,1724677650351,-153.0,0.00012,2]
[336039850,1724677650371,-312.90681455,0.000121,5]
[336039851,1724677650394,-207.7743686,0.000121,2]
[336039852,1724677650415,-153.0,0.000121,2]
[336039853,1724677650436,-414.8789651,0.000121,2]
[336039854,1724677650457,-153.0,0.000121,2]
[336039855,1724677650477,-172.66402829,0.00012148,2]
[336039856,1724677650499,-500.0,0.00012228,2]
[336039857,1724677650520,-422.62304391,0.00012228,2]
[336039867,1724677752186,-186.66923283,0.00011712,2]
[336039871,1724677829034,485.810329,0.00010959,2]
[336039872,1724677829615,-300.0,0.00011998,2]
[336039873,1724677829639,-5721.62172679,0.00012198,2]
[336039874,1724677829662,-505.66,0.00012227,2]
[336039875,1724677829684,-1010.78,0.00012228,2]
[336039876,1724677829707,-989.6,0.00012228,2]
[336039877,1724677829734,-805.58,0.00012228,2]
[336039878,1724677829755,-500.0,0.00012228,2]
[336039879,1724677829776,-709.2,0.00012228,2]
[336039880,1724677829798,-500.0,0.00012228,2]
[336039881,1724677829820,-1397.99,0.00012228,2]
[336039882,1724677829843,-500.0,0.00012228,2]
[336039883,1724677829866,-665.79,0.00012228,2]
[336039884,1724677829889,-23228.9,0.00012228,2]
[336039885,1724677829912,-683.86,0.00012228,2]
[336039886,1724677829933,-1071.22,0.00012228,2]
[336039887,1724677829957,-500.0,0.00012228,2]
[336039888,1724677829983,-500.0,0.00012228,2]
[336039889,1724677830006,-1468.67,0.00012228,2]
[336039890,1724677830029,-500.0,0.00012228,2]
[336039891,1724677830053,-500.0,0.00012228,2]
[336039892,1724677830079,-656.27,0.00012228,2]
[336039893,1724677830101,-500.0,0.00012228,2]
[336039894,1724677830124,-569.01,0.00012228,2]
[336039895,1724677830148,-692.76,0.00012228,2]
[336039896,1724677830172,-500.0,0.00012228,2]
[336039897,1724677830194,-500.0,0.00012228,2]
[336039898,1724677830216,-500.0,0.00012228,2]
[336039899,1724677830239,-500.0,0.00012228,2]
[336039900,1724677830264,-500.0,0.00012228,2]
[336039901,1724677830288,-500.0,0.00012228,2]
[336039902,1724677830860,22009.3809006,0.00011987,2]
[336039914,1724677832473,-1988.69459985,0.00012229,2]
[336039925,1724677838342,-712.8,0.00012227,2]
[336039926,1724677838352,-500.0,0.00012228,2]
[336039927,1724677838361,-3401.55382478,0.00012229,2]
[336039928,1724677838395,-24609.75157537,0.00012229,2]
[336039929,1724677838404,-3000.0,0.00012229,2]
[336039930,1724677838413,-2740.50371935,0.00012238,2]
[336039931,1724677838426,-1269.91300588,0.00012238,2]
[336039932,1724677838792,-20919.26433937,0.00012238,2]
[336039933,1724677838802,-24929.6810646,0.00012239,2]
[336039934,1724677838812,-28296.59315494,0.0001224,2]
[336039935,1724677838824,-21562.76897416,0.0001224,2]
[336039936,1724677838833,-24929.6810646,0.00012241,2]
[336039937,1724677838842,-500.0,0.00012248,2]
[336039938,1724677838852,-576.67,0.00012248,2]
[336039939,1724677838861,-500.0,0.00012248,2]
[336039940,1724677838871,-2332.52,0.00012248,2]
[336039941,1724677838880,-767.82,0.00012248,2]
[336039942,1724677838890,-500.0,0.00012248,2]
[336039943,1724677838899,-2137.11,0.00012248,2]
[336039944,1724677838909,-1440.44,0.00012248,2]
[336039945,1724677838919,-500.0,0.00012248,2]
[336039946,1724677838928,-500.0,0.00012248,2]
[336039947,1724677838937,-510.26,0.00012248,2]
[336039948,1724677838946,-667.46,0.00012248,2]
[336039949,1724677838956,-500.0,0.00012248,2]
[336039950,1724677838965,-695.84,0.00012248,2]
[336039951,1724677838976,-500.0,0.00012248,2]
[336039952,1724677838986,-500.0,0.00012248,2]
[336039953,1724677838995,-850.19,0.00012248,2]
[336039954,1724677839005,-596.46,0.00012248,2]
[336039955,1724677839014,-560.96,0.00012248,2]
[336039956,1724677839023,-500.0,0.00012248,2]
[336039957,1724677839033,-500.0,0.00012249,2]
[336039958,1724677839042,-543.44109726,0.00012249,2]
[336039959,1724677839051,-633.9,0.00012249,2]
[336039960,1724677839061,-769.78,0.00012249,2]
[336039961,1724677839070,-605.24147502,0.00012249,2]
[336039962,1724677839080,-507.93575943,0.00012249,2]
[336039963,1724677839091,-500.0,0.00012249,2]
[336039964,1724677839100,-537.71741097,0.00012249,2]
[336039965,1724677839110,-952.78,0.00012249,2]
[336039966,1724677839120,-500.0,0.00012249,2]
[336039967,1724677839129,-610.34,0.00012249,2]
[336039968,1724677839139,-431.87164347,0.00012249,2]
[336039969,1724677839148,-500.0,0.00012249,2]
[336039970,1724677839158,-500.0,0.00012249,2]
[336039971,1724677839167,-500.0,0.00012249,2]
[336039972,1724677839177,-500.0,0.00012249,2]
[336039973,1724677839187,-576.38,0.00012249,2]
[336039974,1724677839196,-500.0,0.00012249,2]
[336039975,1724677839206,-500.0,0.00012249,2]
[336039976,1724677839215,-500.0,0.00012249,2]
[336039977,1724677839228,-500.0,0.00012249,2]
[336039978,1724677839238,-500.0,0.00012249,2]
[336039979,1724677839248,-500.0,0.00012249,2]
[336039980,1724677839258,-500.0,0.00012249,2]
[336039981,1724677839268,-500.0,0.00012249,2]
[336039982,1724677839279,-500.0,0.00012249,2]
[336039983,1724677839292,-500.0,0.00012249,2]
[336039984,1724677839302,-500.0,0.00012249,2]
[336039985,1724677839312,-486.51282134,0.00012249,2]
[336039986,1724677839851,-125.20042602,0.00012249,2]
[336039987,1724677839861,-500.0,0.00012249,2]
[336039988,1724677839870,-498.04826788,0.00012249,2]
[336039989,1724677839879,-500.0,0.00012249,2]
[336039990,1724677839888,-500.0,0.00012249,2]
[336039991,1724677839897,-500.0,0.00012249,2]
[336039992,1724677839908,-500.0,0.00012249,2]
[336039993,1724677839917,-500.0,0.00012249,2]
[336039995,1724677839926,-500.0,0.00012249,2]
[336039996,1724677839936,-500.0,0.00012249,2]
[336039997,1724677839946,-500.0,0.00012249,2]
[336039998,1724677839955,-500.0,0.00012249,2]
[336039999,1724677839964,-500.0,0.00012249,2]
[336040000,1724677839976,-500.0,0.00012249,2]
[336040001,1724677839987,-500.0,0.00012249,2]
[336040002,1724677839997,-500.0,0.00012249,2]
[336040003,1724677840007,-873.05,0.00012249,2]
[336040004,1724677840016,-967.59,0.00012249,2]
[336040005,1724677840025,-674.39,0.00012249,2]
[336040006,1724677840035,-500.0,0.00012249,2]
[336040007,1724677840045,-500.0,0.00012249,2]
[336040008,1724677840054,-500.0,0.00012249,2]
[336040009,1724677840063,-500.0,0.00012249,2]
[336040010,1724677840073,-500.0,0.00012249,2]
[336040011,1724677840082,-500.0,0.00012249,2]
[336040012,1724677840092,-500.0,0.00012249,2]
[336040013,1724677840102,-587.48,0.00012249,2]
[336040014,1724677840112,-500.0,0.00012249,2]
[336040015,1724677840121,-500.0,0.00012249,2]
[336040016,1724677840130,-623.29,0.00012249,2]
[336040018,1724677840140,-629.83,0.00012249,2]
[336040020,1724677840149,-500.0,0.00012249,2]
[336040022,1724677840158,-501.03948314,0.00012249,2]
[336040023,1724677840168,-500.0,0.00012249,2]
[336040025,1724677840177,-501.68916664,0.00012249,2]
[336040027,1724677840186,-680.67,0.00012249,2]
[336040029,1724677840196,-500.0,0.00012249,2]
[336040031,1724677840205,-500.0,0.00012249,2]
[336040033,1724677840215,-500.0,0.00012249,2]
[336040035,1724677840224,-517.95,0.00012249,2]
[336040037,1724677840235,-500.0,0.00012249,2]
[336040039,1724677840244,-500.0,0.00012249,2]
[336040041,1724677840254,-500.0,0.00012249,2]
[336040043,1724677840264,-572.69,0.00012249,2]
[336040045,1724677840274,-500.0,0.00012249,2]
[336040047,1724677840290,-500.0,0.00012249,2]
[336040050,1724677840301,-163.41330039,0.00012249,2]
[336040052,1724677840310,-500.0,0.00012249,2]
[336040054,1724677840319,-500.0,0.00012249,2]
[336040056,1724677840330,-500.0,0.00012249,2]
[336040058,1724677840340,-500.0,0.00012249,2]
[336040060,1724677840349,-500.0,0.00012249,2]
[336040062,1724677840362,-500.0,0.00012249,2]
[336040064,1724677840372,-500.0,0.00012249,2]
[336040066,1724677840382,-500.0,0.00012249,2]
[336040068,1724677840393,-500.0,0.00012249,2]
[336040070,1724677840404,-512.09,0.00012249,2]
[336040072,1724677840414,-502.1449473,0.00012249,2]
[336040074,1724677840425,-500.0,0.00012249,2]
[336040076,1724677840436,-500.0,0.00012249,2]
[336040079,1724677840445,-281.37833814,0.00012249,2]
[336040081,1724677840456,-500.0,0.00012249,2]
[336040083,1724677840467,-500.0,0.00012249,2]
[336040085,1724677840479,-500.0,0.00012249,2]
[336040087,1724677840489,-500.0,0.00012249,2]
[336040089,1724677840498,-528.51238524,0.00012249,2]
[336040091,1724677840508,-500.0,0.00012249,2]
[336040093,1724677840518,-611.98,0.00012249,2]
[336040095,1724677840527,-500.0,0.00012249,2]
[336040097,1724677840536,-500.0,0.00012249,2]
[336040099,1724677840546,-500.0,0.00012249,2]
[336040101,1724677840555,-500.0,0.00012249,2]
[336040103,1724677840565,-500.86077,0.00012249,2]
[336040105,1724677840574,-500.0,0.00012249,2]
[336040107,1724677840584,-2332.52,0.00012249,2]
[336040109,1724677840593,-500.0,0.00012249,2]
[336040111,1724677840602,-500.0,0.00012249,2]
[336040113,1724677840612,-547.96049857,0.00012249,2]
[336040115,1724677840622,-804.61,0.00012249,2]
[336040117,1724677840631,-500.0,0.00012249,2]
[336040119,1724677840640,-500.32335848,0.00012249,2]
[336040121,1724677840650,-500.0,0.00012249,2]
[336040123,1724677840661,-500.0,0.00012249,2]
[336040125,1724677840672,-500.37794862,0.00012249,2]
[336040127,1724677840681,-1198.49,0.00012249,2]
[336040129,1724677840691,-500.0,0.00012249,2]
[336040131,1724677840700,-500.52711479,0.00012249,2]
[336040133,1724677840709,-500.0,0.00012249,2]
[336040135,1724677840719,-500.0,0.00012249,2]
[336040138,1724677840731,-640.31,0.00012249,2]
[336040140,1724677840741,-500.0,0.00012249,2]
[336040141,1724677840752,-545.0,0.00012249,2]
[336040142,1724677840761,-500.0,0.00012249,2]
[336040143,1724677840771,-500.0,0.00012249,2]
[336040144,1724677840780,-500.0,0.00012249,2]
[336040145,1724677840789,-598.05619566,0.00012249,2]